[Event "Chinese Team-ch Men 2025"]
[Site "Zhang Jiakou Hebei"]
[Date "2025.04.28"]
[Round "4.11"]
[White "Chen, KaiLin"]
[Black "Chu, Weichao"]
[Result "1/2-1/2"]
[Annotator "RC"]
[ECO "B18"]
[WhiteElo "2329"]
[BlackElo "2406"]
[PlyCount "179"]
[EventDate "2025.04.26"]
[EventType "team-tourn"]
[EventCountry "CHN"]
[SourceTitle "playchess.com"]
[Source "ChessBase"]
[SourceQuality "1"]
[TimeControl "5400+30"]

1. e4 {[%emt 0:00:03]} c6 {[%emt 0:00:08]} 2. d4 {[%emt 0:00:03]} d5 {[%emt 0:00:06]} 3. Nc3 {[%emt 0:01:24]} dxe4 {[%emt 0:00:09]} 4. Nxe4 {[%emt 0:00:03]} Bf5 {[%emt 0:00:06]} 5. Ng3 {[%emt 0:00:04]} Bg6 {[%emt 0:00:10]} 6. Nf3 {[%emt 0:00:07]} Nd7 {[%emt 0:00:44]} 7. Bd3 {[%emt 0:00:14]} Ngf6 {[%emt 0:06:32]} 8. O-O {[%emt 0:00:26]} e6 {[%emt 0:03:11]} 9. Re1 {[%emt 0:07:02]} Be7 {[%emt 0:01:01]} 10. b3 {[%emt 0:01:53]} a5 {[%emt 0:03:18]} 11. c4 {[%emt 0:02:52]} O-O {[%emt 0:04:36]} 12. Bxg6 {[%emt 0:02:17]} hxg6 {[%emt 0:00:50]} 13. Bb2 {[%emt 0:03:17]} a4 {[%emt 0:04:39]} 14. Rc1 {[%emt 0:06:02]} Qa5 {[%emt 0:02:19]} 15. Bc3 {[%emt 0:02:47]} Qa6 {[%emt 0:01:00]} 16. Ne5 {[%emt 0:04:23]} Rfd8 {[%emt 0:05:12]} 17. Qf3 {[%emt 0:00:56]} Rac8 {[%emt 0:01:04]} 18. b4 {[%emt 0:27:14]} a3 {[%emt 0:12:36]} 19. h3 {[%emt 0:05:59]} Nxe5 {[%emt 0:09:39]} 20. dxe5 {[%emt 0:00:05]} Nd7 {[%emt 0:00:05]} 21. Qe2 {[%emt 0:02:42]} Nb6 {[%emt 0:04:21]} 22. c5 {[%emt 0:00:37]} Qxe2 {[%emt 0:01:38]} 23. Rxe2 {[%emt 0:00:17]} Nd5 {[%emt 0:00:23]} 24. Ne4 {[%emt 0:05:42]} b6 {[%emt 0:00:10]} 25. Nd6 {[%emt 0:07:03]} Rb8 {[%emt 0:02:07]} 26. g3 {[%emt 0:00:13]} g5 {[%emt 0:01:55]} 27. Kg2 {[%emt 0:01:59]} f6 {[%emt 0:10:11]} 28. exf6 {[%emt 0:02:12]} Bxd6 {[%emt 0:00:39]} 29. cxd6 {[%emt 0:00:28]} gxf6 {[%emt 0:00:18]} 30. Rxe6 {[%emt 0:03:13]} Kf7 {[%emt 0:00:07]} 31. Re4 {[%emt 0:04:28]} Rxd6 {[%emt 0:00:58]} 32. Bd2 {[%emt 0:00:49]} b5 {[%emt 0:07:06]} 33. h4 {[%emt 0:00:44]} gxh4 {[%emt 0:00:02]} 34. Rxh4 {[%emt 0:01:07]} Re8 {[%emt 0:00:59]} 35. Kf3 {[%emt 0:00:11]} Nb6 {[%emt 0:01:39]} 36. Be3 {[%emt 0:00:20]} Nc4 {[%emt 0:00:47]} 37. Rd4 {[%emt 0:00:21]} Rxd4 {[%emt 0:03:23]} 38. Bxd4 {[%emt 0:00:03]} Nd2+ {[%emt 0:00:11]} 39. Kg2 {[%emt 0:00:07]} Re4 {[%emt 0:01:05]} 40. Be3 {[%emt 0:00:54]} Nc4 {[%emt 0:00:06]} 41. Rc3 {[%emt 0:01:41]} Nxe3+ {[%emt 0:02:27]} 42. fxe3 {[%emt 0:00:04]} Rxb4 {[%emt 0:00:11]} 43. Rxa3 {[%emt 0:00:02]} Ke6 {[%emt 0:01:52]} 44. Kf3 {[%emt 0:00:07]} c5 {[%emt 0:02:03]} 45. Ra6+ {[%emt 0:04:30]} Ke5 {[%emt 0:00:16]} 46. Rc6 {[%emt 0:01:25]} c4 {[%emt 0:01:12]} 47. g4 {[%emt 0:00:24]} Rb2 {[%emt 0:07:56]} 48. a4 {[%emt 0:00:10]} bxa4 {[%emt 0:00:07]} 49. Rxc4 {[%emt 0:00:03]} a3 {[%emt 0:00:06]} 50. Ra4 {[%emt 0:00:27]} a2 {[%emt 0:00:05]} 51. Ra5+ {[%emt 0:00:29]} Kd6 {[%emt 0:00:25]} 52. Ke4 {[%emt 0:01:16]} Kc6 {[%emt 0:00:39]} 53. Kd3 {[%emt 0:00:41]} Kb6 {[%emt 0:00:34]} 54. Ra8 {[%emt 0:00:12]} Kc5 {[%emt 0:00:58]} 55. Rc8+ {[%emt 0:01:41]} Kd5 {[%emt 0:00:40]} 56. Rd8+ {[%emt 0:00:17]} Ke6 {[%emt 0:00:30]} 57. Ra8 {[%emt 0:00:10]} Rg2 {[%emt 0:00:07]} 58. Ke4 {[%emt 0:00:15]} Kd6 {[%emt 0:00:22]} 59. Kd3 {[%emt 0:02:06]} Kd5 {[%emt 0:00:09]} 60. Ra5+ {[%emt 0:00:20]} Kc6 {[%emt 0:00:06]} 61. Kc3 {[%emt 0:00:19]} Kb6 {[%emt 0:00:29]} 62. Ra8 {[%emt 0:00:03]} Kb5 {[%emt 0:00:21]} 63. Kb3 {[%emt 0:00:53]} Re2 {[%emt 0:00:21]} 64. Ra7 {[%emt 0:01:14]} Kc5 {[%emt 0:00:36]} 65. Ra5+ {[%emt 0:00:06]} Kd6 {[%emt 0:00:23]} 66. Kc4 {[%emt 0:00:07]} Rg2 {[%emt 0:01:18]} 67. Kd3 {[%emt 0:00:08]} Kc6 {[%emt 0:00:06]} 68. Ra8 {[%emt 0:00:28]} Kb7 {[%emt 0:00:09]} 69. Ra5 {[%emt 0:00:11]} Kb6 {[%emt 0:00:11]} 70. Ra8 {[%emt 0:00:04]} Kc5 {[%emt 0:01:00]} 71. Kc3 {[%emt 0:00:41]} Re2 {[%emt 0:00:33]} 72. Kd3 {[%emt 0:00:04]} Rf2 {[%emt 0:00:10]} 73. Kc3 {[%emt 0:00:11]} Kd5 {[%emt 0:01:38]} 74. Kd3 {[%emt 0:00:04]} Ke6 {[%emt 0:00:05]} 75. Ra7 {[%emt 0:00:17]} Rg2 {[%emt 0:00:07]} 76. Ke4 {[%emt 0:00:09]} Rd2 {[%emt 0:00:32]} 77. Ra6+ {[%emt 0:00:08]} Kd7 {[%emt 0:00:54]} 78. Kf5 {[%emt 0:01:09]} Kc7 {[%emt 0:02:04]} 79. e4 {[%emt 0:01:07]} Kb7 {[%emt 0:00:24]} 80. Ra3 {[%emt 0:00:17]} Rf2+ {[%emt 0:00:09]} 81. Ke6 {[%emt 0:00:20]} Kc6 {[%emt 0:00:51]} 82. e5 {[%emt 0:00:24]} fxe5 {[%emt 0:00:10]} 83. Kxe5 {[%emt 0:00:02]} Kc5 {[%emt 0:00:13]} 84. g5 {[%emt 0:00:25]} Kb4 {[%emt 0:00:05]} 85. Ra8 {[%emt 0:00:13]} Kb3 {[%emt 0:00:14]} 86. g6 {[%emt 0:00:10]} Rg2 {[%emt 0:00:09]} 87. Kf6 {[%emt 0:00:25]} Kb2 {[%emt 0:00:05]} 88. Rxa2+ {[%emt 0:00:15]} Kxa2 {[%emt 0:00:05]} 89. g7 {[%emt 0:00:02]} Rxg7 {[%emt 0:00:05]} 90. Kxg7 {[%emt 0:00:34]} 1/2-1/2

[Event "Chinese Team-ch Men 2025"]
[Site "Zhang Jiakou Hebei"]
[Date "2025.04.28"]
[Round "4.12"]
[White "Xi, Qi"]
[Black "Yu, Kaifeng"]
[Result "1/2-1/2"]
[Annotator "RC"]
[ECO "D29"]
[WhiteElo "2257"]
[BlackElo "2312"]
[PlyCount "60"]
[EventDate "2025.04.26"]
[EventType "team-tourn"]
[EventCountry "CHN"]
[SourceTitle "playchess.com"]
[Source "ChessBase"]
[SourceQuality "1"]
[TimeControl "5400+30"]

1. d4 {[%emt 0:00:03]} Nf6 {[%emt 0:00:03]} 2. c4 {[%emt 0:00:12]} e6 {[%emt 0:00:04]} 3. Nf3 {[%emt 0:00:13]} d5 {[%emt 0:00:04]} 4. Nc3 {[%emt 0:00:16]} dxc4 {[%emt 0:00:04]} 5. e3 {[%emt 0:05:06]} a6 {[%emt 0:00:06]} 6. Bxc4 {[%emt 0:06:02]} b5 {[%emt 0:00:13]} 7. Bb3 {[%emt 0:01:20]} Bb7 {[%emt 0:00:12]} 8. O-O {[%emt 0:00:12]} c5 {[%emt 0:10:07]} 9. Qe2 {[%emt 0:00:44]} Nbd7 {[%emt 0:17:30]} 10. Rd1 {[%emt 0:02:30]} Qc7 {[%emt 0:22:49]} 11. Bd2 {[%emt 0:05:47]} Be7 {[%emt 0:01:36]} 12. Rac1 {[%emt 0:00:33]} Qb8 {[%emt 0:03:33]} 13. Bc2 {[%emt 0:16:19]} O-O {[%emt 0:05:48]} 14. e4 {[%emt 0:01:21]} cxd4 {[%emt 0:00:09]} 15. Nxd4 {[%emt 0:00:04]} Rd8 {[%emt 0:01:01]} 16. Bg5 {[%emt 0:07:42]} Bd6 {[%emt 0:05:41]} 17. Nf3 {[%emt 0:05:40]} Bf4 {[%emt 0:02:09]} 18. Bxf4 {[%emt 0:00:56]} Qxf4 {[%emt 0:00:02]} 19. Qd2 {[%emt 0:03:52]} Qxd2 {[%emt 0:01:02]} 20. Nxd2 {[%emt 0:00:18]} Nb6 {[%emt 0:05:25]} 21. f3 {[%emt 0:02:04]} Rac8 {[%emt 0:03:16]} 22. Kf2 {[%emt 0:01:49]} Nfd7 {[%emt 0:05:06]} 23. Ke1 {[%emt 0:15:01]} Kf8 {[%emt 0:01:51]} 24. Ne2 {[%emt 0:02:19]} Ne5 {[%emt 0:02:04]} 25. b3 {[%emt 0:02:05]} b4 {[%emt 0:01:06]} 26. Nf1 {[%emt 0:03:23]} Rxd1+ {[%emt 0:00:52]} 27. Kxd1 {[%emt 0:00:08]} a5 {[%emt 0:01:00]} 28. Bb1 {[%emt 0:00:59]} Rxc1+ {[%emt 0:00:53]} 29. Nxc1 {[%emt 0:00:32]} Ba6 {[%emt 0:00:30]} 30. Ne3 {[%emt 0:00:11]} g5 {[%emt 0:00:38]} 1/2-1/2

[Event "Chinese Team-ch Men 2025"]
[Site "Zhang Jiakou Hebei"]
[Date "2025.04.28"]
[Round "4.13"]
[White "Xu, Minghui"]
[Black "Bai, Jinshi"]
[Result "1/2-1/2"]
[Annotator "RC"]
[ECO "C50"]
[WhiteElo "2459"]
[BlackElo "2569"]
[PlyCount "173"]
[EventDate "2025.04.26"]
[EventType "team-tourn"]
[EventCountry "CHN"]
[SourceTitle "playchess.com"]
[Source "ChessBase"]
[SourceQuality "1"]
[TimeControl "5400+30"]

1. e4 {[%emt 0:00:21]} e5 {[%emt 0:01:39]} 2. Nf3 {[%emt 0:00:09]} Nc6 {[%emt 0:00:28]} 3. Bc4 {[%emt 0:01:49]} Nf6 {[%emt 0:01:13]} 4. d3 {[%emt 0:00:11]} Bc5 {[%emt 0:01:28]} 5. O-O {[%emt 0:00:31]} O-O {[%emt 0:00:24]} 6. Bg5 {[%emt 0:02:22]} Be7 {[%emt 0:03:30]} 7. Re1 {[%emt 0:05:27]} h6 {[%emt 0:02:31]} 8. Bh4 {[%emt 0:00:35]} d6 {[%emt 0:01:01]} 9. a4 {[%emt 0:04:41]} Nh5 {[%emt 0:04:58]} 10. Bxe7 {[%emt 0:04:47]} Qxe7 {[%emt 0:00:16]} 11. Nc3 {[%emt 0:01:31]} Nf4 {[%emt 0:18:02]} 12. Nd5 {[%emt 0:28:01]} Nxd5 {[%emt 0:00:28]} 13. Bxd5 {[%emt 0:00:54]} Qf6 {[%emt 0:07:23]} 14. h3 {[%emt 0:10:23]} Ne7 {[%emt 0:03:04]} 15. d4 {[%emt 0:00:43]} Ng6 {[%emt 0:03:51]} 16. dxe5 {[%emt 0:02:45]} dxe5 {[%emt 0:00:13]} 17. Nh2 {[%emt 0:04:47]} Nf4 {[%emt 0:08:24]} 18. Qf3 {[%emt 0:01:10]} Nxd5 {[%emt 0:13:45]} 19. exd5 {[%emt 0:00:07]} Qxf3 {[%emt 0:00:02]} 20. Nxf3 {[%emt 0:00:06]} f6 {[%emt 0:00:03]} 21. a5 {[%emt 0:11:26]} Rd8 {[%emt 0:02:25]} 22. Red1 {[%emt 0:03:33]} Bf5 {[%emt 0:05:31]} 23. Ne1 {[%emt 0:05:11]} b5 {[%emt 0:04:21]} 24. axb6 {[%emt 0:03:11]} axb6 {[%emt 0:00:04]} 25. c4 {[%emt 0:01:06]} h5 {[%emt 0:03:20]} 26. Kf1 {[%emt 0:00:14]} h4 {[%emt 0:03:18]} 27. Ke2 {[%emt 0:00:21]} b5 {[%emt 0:01:48]} 28. Ra4 {[%emt 0:03:13]} Ra7 29. Rxa7 {[%emt 0:00:30]} Rb8 {[%emt 0:00:03]} 30. Ra8 Rxa8 {[%emt 0:01:00]} 31. cxb5 {[%emt 0:00:36]} Rb8 {[%emt 0:04:30]} 32. Rc1 {[%emt 0:00:34]} Rxb5 {[%emt 0:00:55]} 33. Rc2 {[%emt 0:00:07]} c6 34. Rxc6 {[%emt 0:00:30]} Rb4 {[%emt 0:00:34]} 35. Rc7 Rxb2+ {[%emt 0:01:01]} 36. Ke3 {[%emt 0:01:12]} Rb3+ {[%emt 0:00:38]} 37. Ke2 {[%emt 0:00:26]} Rb5 {[%emt 0:00:16]} 38. Nf3 {[%emt 0:03:53]} g5 {[%emt 0:04:16]} 39. Nh2 {[%emt 0:00:06]} Rxd5 {[%emt 0:01:12]} 40. Ng4 {[%emt 0:00:06]} Bxg4+ {[%emt 0:00:06]} 41. hxg4 {[%emt 0:00:04]} Rd4 {[%emt 0:00:32]} 42. f3 {[%emt 0:00:26]} Kf8 {[%emt 0:00:04]} 43. Ra7 {[%emt 0:01:29]} Ke8 {[%emt 0:00:05]} 44. Ke3 {[%emt 0:00:31]} Rd7 {[%emt 0:00:05]} 45. Ra6 {[%emt 0:00:40]} Kf7 {[%emt 0:00:05]} 46. Rb6 {[%emt 0:00:17]} Rd1 {[%emt 0:00:06]} 47. Rb2 {[%emt 0:00:39]} Ke6 {[%emt 0:00:06]} 48. Ra2 {[%emt 0:00:19]} Rd6 {[%emt 0:00:47]} 49. Ke4 {[%emt 0:00:11]} Rd4+ {[%emt 0:01:15]} 50. Ke3 {[%emt 0:00:05]} Kd5 {[%emt 0:00:08]} 51. Ra6 {[%emt 0:01:22]} Rf4 {[%emt 0:00:05]} 52. Ra5+ {[%emt 0:00:23]} Kc4 {[%emt 0:00:04]} 53. Ra4+ {[%emt 0:01:31]} Kc3 {[%emt 0:00:12]} 54. Ra6 {[%emt 0:00:47]} e4 {[%emt 0:01:33]} 55. Rc6+ {[%emt 0:00:19]} Kb4 {[%emt 0:00:17]} 56. Re6 {[%emt 0:01:16]} exf3 {[%emt 0:01:37]} 57. gxf3 {[%emt 0:00:05]} Kc5 {[%emt 0:00:04]} 58. Ra6 {[%emt 0:00:12]} Kd5 {[%emt 0:00:13]} 59. Ra5+ {[%emt 0:00:42]} Ke6 {[%emt 0:00:05]} 60. Ra6+ {[%emt 0:00:13]} Kf7 {[%emt 0:00:04]} 61. Ra7+ {[%emt 0:00:57]} Kg6 {[%emt 0:00:05]} 62. Kf2 {[%emt 0:00:53]} Rd4 {[%emt 0:00:53]} 63. Ra2 {[%emt 0:00:14]} Kf7 {[%emt 0:00:06]} 64. Re2 {[%emt 0:00:11]} Rd6 {[%emt 0:01:06]} 65. Kg2 {[%emt 0:00:17]} Re6 {[%emt 0:00:05]} 66. Ra2 {[%emt 0:00:13]} Re3 {[%emt 0:00:58]} 67. Ra7+ {[%emt 0:00:41]} Ke6 {[%emt 0:01:25]} 68. Ra6+ {[%emt 0:00:09]} Kf7 {[%emt 0:01:07]} 69. Ra7+ {[%emt 0:00:20]} Re7 {[%emt 0:00:03]} 70. Ra2 {[%emt 0:00:04]} Rd7 {[%emt 0:00:06]} 71. Re2 {[%emt 0:00:29]} Rd3 {[%emt 0:00:04]} 72. Kf2 {[%emt 0:00:13]} Rd6 {[%emt 0:00:51]} 73. Kg2 {[%emt 0:00:15]} Re6 {[%emt 0:00:04]} 74. Ra2 {[%emt 0:00:07]} Ke7 {[%emt 0:01:58]} 75. Ra7+ {[%emt 0:01:56]} Kd6 {[%emt 0:00:00]} 76. Kf2 {[%emt 0:00:04]} Kd5 {[%emt 0:00:00]} 77. Ra5+ {[%emt 0:00:46]} Kd4 {[%emt 0:00:00]} 78. Ra4+ {[%emt 0:01:28]} Kc3 {[%emt 0:00:00]} 79. f4 {[%emt 0:01:04]} Kd3 {[%emt 0:02:42]} 80. fxg5 {[%emt 0:00:19]} fxg5 {[%emt 0:00:04]} 81. Ra5 {[%emt 0:00:09]} Rg6 {[%emt 0:00:09]} 82. Kf3 {[%emt 0:00:31]} Rf6+ {[%emt 0:00:57]} 83. Rf5 {[%emt 0:00:28]} Rg6 {[%emt 0:00:05]} 84. Rd5+ {[%emt 0:00:32]} Kc4 {[%emt 0:00:03]} 85. Rf5 {[%emt 0:00:47]} Kd3 {[%emt 0:00:08]} 86. Rd5+ {[%emt 0:00:04]} Kc4 {[%emt 0:00:04]} 87. Rf5 {[%emt 0:00:04]} 1/2-1/2

[Event "Chinese Team-ch Men 2025"]
[Site "Zhang Jiakou Hebei"]
[Date "2025.04.28"]
[Round "4.14"]
[White "Kong, Xiangrui"]
[Black "Chen, Yuan"]
[Result "1-0"]
[Annotator "RC"]
[ECO "D30"]
[WhiteElo "2451"]
[BlackElo "2286"]
[PlyCount "103"]
[EventDate "2025.04.26"]
[EventType "team-tourn"]
[EventCountry "CHN"]
[SourceTitle "playchess.com"]
[Source "ChessBase"]
[SourceQuality "1"]
[TimeControl "5400+30"]

1. d4 {[%emt 0:00:02]} d5 {[%emt 0:00:25]} 2. c4 {[%emt 0:00:05]} c6 {[%emt 0:00:05]} 3. Nf3 {[%emt 0:05:13]} Nf6 {[%emt 0:00:31]} 4. e3 {[%emt 0:00:05]} e6 {[%emt 0:13:47]} 5. b3 {[%emt 0:00:57]} Bb4+ {[%emt 0:00:55]} 6. Nbd2 {[%emt 0:00:38]} O-O {[%emt 0:03:24]} 7. Bb2 {[%emt 0:05:03]} Ne4 {[%emt 0:04:45]} 8. Bd3 {[%emt 0:05:17]} f5 {[%emt 0:02:26]} 9. O-O {[%emt 0:09:22]} Bd7 {[%emt 0:06:07]} 10. Nb1 {[%emt 0:27:02]} Be8 {[%emt 0:03:31]} 11. Ne5 {[%emt 0:00:04]} Qe7 {[%emt 0:04:52]} 12. Qc1 {[%emt 0:04:56]} Nd7 {[%emt 0:06:00]} 13. Nxd7 {[%emt 0:00:31]} Bxd7 {[%emt 0:02:21]} 14. Ba3 {[%emt 0:00:16]} a5 {[%emt 0:05:49]} 15. Bxb4 {[%emt 0:03:58]} axb4 {[%emt 0:05:08]} 16. Nd2 {[%emt 0:00:03]} b6 {[%emt 0:03:25]} 17. Nf3 {[%emt 0:01:08]} Nc3 {[%emt 0:04:38]} 18. a3 {[%emt 0:02:02]} Rfc8 {[%emt 0:03:31]} 19. Ne5 {[%emt 0:01:01]} Be8 {[%emt 0:00:27]} 20. Qd2 {[%emt 0:01:49]} g6 {[%emt 0:12:03]} 21. axb4 {[%emt 0:20:03]} Qxb4 {[%emt 0:00:10]} 22. Bc2 {[%emt 0:00:56]} Na2 {[%emt 0:02:22]} 23. Qe2 {[%emt 0:00:20]} Qc3 {[%emt 0:06:03]} 24. Bxf5 {[%emt 0:00:55]} exf5 {[%emt 0:00:15]} 25. Rxa2 {[%emt 0:00:04]} Qxb3 {[%emt 0:00:06]} 26. Rb2 {[%emt 0:00:21]} Qc3 {[%emt 0:04:44]} 27. Rxb6 {[%emt 0:01:55]} dxc4 {[%emt 0:00:04]} 28. Rbb1 {[%emt 0:02:10]} Bf7 {[%emt 0:03:37]} 29. Rbc1 {[%emt 0:02:04]} Qb3 {[%emt 0:00:47]} 30. Nxf7 {[%emt 0:00:05]} Kxf7 {[%emt 0:00:04]} 31. Qxc4+ {[%emt 0:00:03]} Qxc4 {[%emt 0:00:04]} 32. Rxc4 {[%emt 0:00:05]} Ke7 {[%emt 0:01:20]} 33. Rfc1 {[%emt 0:00:49]} Kd7 {[%emt 0:00:05]} 34. Rc5 {[%emt 0:01:15]} Rab8 {[%emt 0:01:32]} 35. h4 {[%emt 0:00:23]} Ra8 {[%emt 0:00:54]} 36. R1c2 {[%emt 0:00:44]} Rab8 {[%emt 0:00:22]} 37. g3 {[%emt 0:00:16]} Ra8 {[%emt 0:00:57]} 38. Kg2 {[%emt 0:00:04]} Rab8 {[%emt 0:00:10]} 39. Kf3 {[%emt 0:00:07]} Ra8 {[%emt 0:00:33]} 40. Kf4 {[%emt 0:01:26]} Rab8 {[%emt 0:01:00]} 41. Kg5 {[%emt 0:00:15]} Rb5 {[%emt 0:00:20]} 42. d5 {[%emt 0:00:30]} Rxc5 {[%emt 0:01:08]} 43. Rxc5 {[%emt 0:00:05]} Rb8 {[%emt 0:00:25]} 44. dxc6+ {[%emt 0:00:07]} Kc7 {[%emt 0:00:05]} 45. Kh6 {[%emt 0:00:06]} Rb2 {[%emt 0:00:35]} 46. Kxh7 {[%emt 0:00:27]} Rxf2 {[%emt 0:00:18]} 47. Kxg6 {[%emt 0:00:04]} Rf3 {[%emt 0:00:07]} 48. h5 {[%emt 0:00:10]} Rxg3+ {[%emt 0:00:09]} 49. Kxf5 {[%emt 0:00:06]} Rxe3 {[%emt 0:00:04]} 50. h6 {[%emt 0:00:06]} Rf3+ {[%emt 0:00:26]} 51. Kg6 {[%emt 0:00:06]} Rg3+ {[%emt 0:00:04]} 52. Rg5 {[%emt 0:00:04]} 1-0

[Event "Chinese Team-ch Men 2025"]
[Site "Zhang Jiakou Hebei"]
[Date "2025.04.28"]
[Round "4.15"]
[White "Chen, Zhi"]
[Black "Xie, Kaifan"]
[Result "1/2-1/2"]
[Annotator "RC"]
[ECO "C47"]
[WhiteElo "2094"]
[BlackElo "2435"]
[PlyCount "73"]
[EventDate "2025.04.26"]
[EventType "team-tourn"]
[EventCountry "CHN"]
[SourceTitle "playchess.com"]
[Source "ChessBase"]
[SourceQuality "1"]
[TimeControl "5400+30"]

1. e4 {[%emt 0:00:03]} e5 {[%emt 0:00:29]} 2. Nf3 {[%emt 0:00:36]} Nc6 {[%emt 0:00:16]} 3. Nc3 {[%emt 0:02:37]} Nf6 {[%emt 0:00:47]} 4. h3 {[%emt 0:01:07]} Bb4 {[%emt 0:04:16]} 5. Bd3 {[%emt 0:00:24]} O-O {[%emt 0:03:53]} 6. O-O {[%emt 0:00:20]} Re8 {[%emt 0:05:58]} 7. Re1 {[%emt 0:05:58]} a5 {[%emt 0:05:55]} 8. Nd5 {[%emt 0:08:52]} h6 {[%emt 0:08:38]} 9. c3 {[%emt 0:06:32]} Bc5 {[%emt 0:01:38]} 10. Bc2 {[%emt 0:10:49]} Ba7 {[%emt 0:08:41]} 11. d3 {[%emt 0:09:15]} d6 {[%emt 0:00:59]} 12. Be3 {[%emt 0:03:37]} Nxd5 {[%emt 0:09:27]} 13. exd5 {[%emt 0:00:06]} Bxe3 {[%emt 0:00:57]} 14. dxc6 {[%emt 0:17:25]} Bb6 {[%emt 0:02:59]} 15. d4 {[%emt 0:00:25]} exd4 {[%emt 0:03:24]} 16. Qd3 {[%emt 0:00:30]} g6 {[%emt 0:00:14]} 17. Nxd4 {[%emt 0:00:24]} bxc6 {[%emt 0:04:58]} 18. Qc4 {[%emt 0:02:49]} Qd7 {[%emt 0:17:14]} 19. Qxc6 {[%emt 0:19:39]} Qxc6 {[%emt 0:03:45]} 20. Nxc6 {[%emt 0:00:05]} Bd7 {[%emt 0:01:44]} 21. Ne7+ {[%emt 0:01:02]} Kg7 {[%emt 0:00:07]} 22. Nd5 {[%emt 0:00:06]} Rxe1+ {[%emt 0:01:03]} 23. Rxe1 {[%emt 0:00:05]} Rb8 {[%emt 0:00:05]} 24. b3 {[%emt 0:05:21]} Be6 {[%emt 0:00:54]} 25. Nf4 {[%emt 0:01:03]} Kf6 {[%emt 0:04:38]} 26. Be4 {[%emt 0:03:07]} Bd7 {[%emt 0:04:49]} 27. Nd5+ {[%emt 0:00:09]} Kg7 {[%emt 0:00:01]} 28. Bf3 {[%emt 0:01:05]} Kf8 {[%emt 0:01:38]} 29. Nf6 {[%emt 0:00:25]} Rd8 {[%emt 0:00:32]} 30. Nxd7+ {[%emt 0:01:00]} Rxd7 {[%emt 0:00:01]} 31. Bd5 {[%emt 0:00:26]} c6 {[%emt 0:02:43]} 32. Bxc6 {[%emt 0:00:18]} Rc7 {[%emt 0:00:01]} 33. Re8+ {[%emt 0:00:16]} Kg7 {[%emt 0:00:00]} 34. Bd5 {[%emt 0:00:07]} Rxc3 {[%emt 0:00:01]} 35. Re7 {[%emt 0:00:21]} Rc1+ {[%emt 0:00:25]} 36. Kh2 {[%emt 0:00:04]} Rc7 {[%emt 0:00:04]} 37. Rxc7 {[%emt 0:01:22]} 1/2-1/2

[Event "Chinese Team-ch Men 2025"]
[Site "Zhang Jiakou Hebei"]
[Date "2025.04.28"]
[Round "4.16"]
[White "Jin, Yueheng"]
[Black "Gao, Kai"]
[Result "1/2-1/2"]
[Annotator "RC"]
[ECO "A28"]
[WhiteElo "2383"]
[BlackElo "1894"]
[PlyCount "74"]
[EventDate "2025.04.26"]
[EventType "team-tourn"]
[EventCountry "CHN"]
[SourceTitle "playchess.com"]
[Source "ChessBase"]
[SourceQuality "1"]
[TimeControl "5400+30"]

1. c4 {[%emt 0:00:13]} Nf6 {[%emt 0:00:29]} 2. Nc3 {[%emt 0:01:36]} e5 {[%emt 0:04:10]} 3. Nf3 {[%emt 0:00:16]} Nc6 {[%emt 0:01:56]} 4. e4 {[%emt 0:00:13]} d6 {[%emt 0:04:27]} 5. d4 {[%emt 0:01:58]} Bg4 {[%emt 0:02:54]} 6. d5 {[%emt 0:01:50]} Nd4 {[%emt 0:01:02]} 7. Be3 {[%emt 0:03:20]} Nxf3+ {[%emt 0:05:07]} 8. gxf3 {[%emt 0:00:05]} Bd7 {[%emt 0:02:38]} 9. f4 {[%emt 0:06:28]} Ng4 {[%emt 0:03:01]} 10. Bd2 {[%emt 0:00:15]} exf4 {[%emt 0:10:31]} 11. Bxf4 {[%emt 0:01:28]} Qf6 {[%emt 0:12:23]} 12. Qd2 {[%emt 0:02:20]} h6 {[%emt 0:00:50]} 13. h4 {[%emt 0:09:42]} Ne5 {[%emt 0:06:49]} 14. Be2 {[%emt 0:00:10]} g5 {[%emt 0:08:57]} 15. Bxe5 {[%emt 0:00:43]} Qxe5 {[%emt 0:00:01]} 16. hxg5 {[%emt 0:00:26]} hxg5 {[%emt 0:00:05]} 17. Rxh8 {[%emt 0:04:22]} Qxh8 {[%emt 0:00:02]} 18. Qxg5 {[%emt 0:02:48]} Bg7 {[%emt 0:01:31]} 19. Qe3 {[%emt 0:08:15]} Qh1+ {[%emt 0:07:16]} 20. Bf1 {[%emt 0:00:05]} Qh4 {[%emt 0:00:26]} 21. Kd1 {[%emt 0:12:16]} b6 {[%emt 0:04:33]} 22. Kc2 {[%emt 0:06:04]} O-O-O {[%emt 0:04:03]} 23. Bd3 {[%emt 0:07:25]} Be5 {[%emt 0:01:38]} 24. Rf1 {[%emt 0:04:06]} Rg8 {[%emt 0:05:44]} 25. Ne2 {[%emt 0:00:54]} Qh8 {[%emt 0:02:14]} 26. b3 {[%emt 0:07:26]} Bb2 {[%emt 0:02:23]} 27. Qd2 {[%emt 0:01:29]} Rg2 {[%emt 0:01:53]} 28. Nc3 {[%emt 0:00:23]} Ba3 {[%emt 0:02:21]} 29. Qe3 {[%emt 0:03:09]} Qf6 {[%emt 0:00:24]} 30. Be2 {[%emt 0:01:29]} Bc5 {[%emt 0:01:15]} 31. Qf3 {[%emt 0:00:04]} Qxf3 {[%emt 0:00:07]} 32. Bxf3 {[%emt 0:00:03]} Rxf2+ {[%emt 0:00:03]} 33. Rxf2 {[%emt 0:00:48]} Bxf2 {[%emt 0:00:02]} 34. Kd3 {[%emt 0:00:31]} f5 {[%emt 0:00:33]} 35. exf5 {[%emt 0:00:33]} Bxf5+ {[%emt 0:00:01]} 36. Be4 {[%emt 0:00:05]} Bg4 {[%emt 0:00:45]} 37. Ne2 {[%emt 0:00:19]} Bxe2+ {[%emt 0:00:05]} 1/2-1/2